[Event "Titled Tuesday Blitz July 25 Late 2023"]
[White "Przybylski, Wojciech"]
[Black "Schnaider, Ilan"]
[WhiteFideId "1117599"]
[BlackFideId "169013"]
[WhiteElo "2553"]
[BlackElo "2736"]
[Result "1-0"]
[Round "9"]
[TimeControl "180+2"]
[Date "2023.07.25"]
[WhiteClock "0:00:04"]
[BlackClock "0:00:03"]
[Board "37"]

1. d4 {[%clk 0:02:34]}  d5 {[%clk 0:02:59]} 2. Nf3 {[%clk 0:02:34]}  Nf6 {[%clk 0:02:59]} 3. c4 {[%clk 0:02:33]}  c6 {[%clk 0:03:00]} 4. Nc3 {[%clk 0:02:33]}  e6 {[%clk 0:03:00]} 5. Bg5 {[%clk 0:02:32]}  h6 {[%clk 0:03:00]} 6. Bh4 {[%clk 0:02:31]}  dxc4 {[%clk 0:03:00]} 7. e4 {[%clk 0:02:31]}  g5 {[%clk 0:03:00]} 8. Bg3 {[%clk 0:02:30]}  b5 {[%clk 0:03:00]} 9. Qc2 {[%clk 0:02:28]}  Bg7 {[%clk 0:02:53]} 10. Rd1 {[%clk 0:02:24]}  Bb7 {[%clk 0:02:53]} 11. Ne5 {[%clk 0:02:23]}  Nbd7 {[%clk 0:02:52]} 12. h4 {[%clk 0:02:22]}  g4 {[%clk 0:02:51]} 13. Be2 {[%clk 0:02:21]}  h5 {[%clk 0:02:43]} 14. f4 {[%clk 0:02:15]}  gxf3 {[%clk 0:02:17]} 15. Bxf3 {[%clk 0:02:15]}  Qe7 {[%clk 0:02:16]} 16. O-O {[%clk 0:02:13]}  a6 {[%clk 0:02:15]} 17. b3 {[%clk 0:01:56]}  cxb3 {[%clk 0:02:09]} 18. axb3 {[%clk 0:01:56]}  c5 {[%clk 0:02:05]} 19. d5 {[%clk 0:01:47]}  Ng4 {[%clk 0:01:33]} 20. d6 {[%clk 0:01:30]}  Qf8 {[%clk 0:01:14]} 21. Nxd7 {[%clk 0:01:15]}  Kxd7 {[%clk 0:01:14]} 22. Ne2 {[%clk 0:01:03]}  Rc8 {[%clk 0:01:06]} 23. Qd2 {[%clk 0:00:48]}  Bh6 {[%clk 0:01:01]} 24. Qa5 {[%clk 0:00:38]}  Be3+ {[%clk 0:00:35]} 25. Kh1 {[%clk 0:00:37]}  c4 {[%clk 0:00:36]} 26. bxc4 {[%clk 0:00:28]}  Rxc4 {[%clk 0:00:36]} 27. e5 {[%clk 0:00:15]}  Bxf3 {[%clk 0:00:27]} 28. Rxf3 {[%clk 0:00:14]}  Rh7 {[%clk 0:00:20]} 29. Qxa6 {[%clk 0:00:13]}  Qb8 {[%clk 0:00:21]} 30. Rb1 {[%clk 0:00:08]}  Rc5 {[%clk 0:00:18]} 31. Bf4 {[%clk 0:00:06]}  Nf2+ {[%clk 0:00:14]} 32. Kh2 {[%clk 0:00:05]}  Ng4+ {[%clk 0:00:14]} 33. Kh3 {[%clk 0:00:04]}  Bxf4 {[%clk 0:00:14]} 34. Nxf4 {[%clk 0:00:04]}  Nxe5 {[%clk 0:00:14]} 35. Rfb3 {[%clk 0:00:03]}  Nc6 {[%clk 0:00:13]} 36. Rxb5 {[%clk 0:00:02]}  Rxb5 {[%clk 0:00:13]} 37. Rxb5 {[%clk 0:00:01]}  Qxd6 {[%clk 0:00:14]} 38. Rb7+ {[%clk 0:00:02]}  Ke8 {[%clk 0:00:13]} 39. Qa8+ {[%clk 0:00:02]}  Nd8 {[%clk 0:00:13]} 40. Rb8 {[%clk 0:00:02]}  Ke7 {[%clk 0:00:10]} 41. g3 {[%clk 0:00:02]}  Nc6 {[%clk 0:00:07]} 42. Qb7+ {[%clk 0:00:02]}  Qd7 {[%clk 0:00:06]} 43. Qxd7+ {[%clk 0:00:02]}  Kxd7 {[%clk 0:00:07]} 44. Rb7+ {[%clk 0:00:02]}  Kd6 {[%clk 0:00:07]} 45. Nd3 {[%clk 0:00:01]}  Rg7 {[%clk 0:00:07]} 46. Nf4 {[%clk 0:00:02]}  Rh7 {[%clk 0:00:06]} 47. Rb5 {[%clk 0:00:02]}  e5 {[%clk 0:00:06]} 48. Rd5+ {[%clk 0:00:01]}  Ke7 {[%clk 0:00:07]} 49. Nd3 {[%clk 0:00:02]}  Ke6 {[%clk 0:00:07]} 50. Rc5 {[%clk 0:00:02]}  Kd6 {[%clk 0:00:07]} 51. Rb5 {[%clk 0:00:02]}  f6 {[%clk 0:00:06]} 52. Nc5 {[%clk 0:00:03]}  Nd4 {[%clk 0:00:06]} 53. Ra5 {[%clk 0:00:02]}  f5 {[%clk 0:00:04]} 54. Nd3 {[%clk 0:00:03]}  e4 {[%clk 0:00:04]} 55. Nf4 {[%clk 0:00:03]}  e3 {[%clk 0:00:04]} 56. Rd5+ {[%clk 0:00:03]}  Kc6 {[%clk 0:00:03]} 57. Rxd4 {[%clk 0:00:04]}  Re7 {[%clk 0:00:04]} 58. Rc4+ {[%clk 0:00:04]}  Kb5 {[%clk 0:00:04]} 59. Rc2 {[%clk 0:00:04]}  Kb4 {[%clk 0:00:04]} 60. Kg2 {[%clk 0:00:04]}  Kb3 {[%clk 0:00:04]} 61. Re2 {[%clk 0:00:04]}  Kc3 {[%clk 0:00:02]} 62. Kf3 {[%clk 0:00:05]}  Kd4 {[%clk 0:00:02]} 63. Ra2 {[%clk 0:00:04]}  Kc4 {[%clk 0:00:01]} 64. Ra3 {[%clk 0:00:04]}  e2 {[%clk 0:00:02]} 65. Nxe2 {[%clk 0:00:03]}  Kb4 {[%clk 0:00:03]} 66. Ra2 {[%clk 0:00:03]}  Rg7 {[%clk 0:00:03]} 67. Nf4 {[%clk 0:00:03]}  Rh7 {[%clk 0:00:03]} 68. Re2 {[%clk 0:00:03]}  Kc4 {[%clk 0:00:04]} 69. Re5 {[%clk 0:00:04]}  Rf7 {[%clk 0:00:04]} 70. Re6 {[%clk 0:00:04]}  Kd4 {[%clk 0:00:05]} 71. Re8 {[%clk 0:00:04]}  Rb7 {[%clk 0:00:05]} 72. Re3 {[%clk 0:00:04]}  Rh7 {[%clk 0:00:05]} 73. Rd3+ {[%clk 0:00:04]}  Ke5 {[%clk 0:00:05]} 74. Rd5+ {[%clk 0:00:04]}  Kf6 {[%clk 0:00:06]} 75. Rd6+ {[%clk 0:00:05]}  Ke5 {[%clk 0:00:06]} 76. Rd5+ {[%clk 0:00:05]}  Kf6 {[%clk 0:00:06]} 77. Rc5 {[%clk 0:00:06]}  Rh8 {[%clk 0:00:05]} 78. Rc6+ {[%clk 0:00:06]}  Kf7 {[%clk 0:00:05]} 79. Ra6 {[%clk 0:00:06]}  Rb8 {[%clk 0:00:05]} 80. Ra3 {[%clk 0:00:06]}  Rh8 {[%clk 0:00:04]} 81. Ra5 {[%clk 0:00:05]}  Kf6 {[%clk 0:00:04]} 82. Ra6+ {[%clk 0:00:06]}  Kf7 {[%clk 0:00:05]} 83. Ra7+ {[%clk 0:00:06]}  Kf6 {[%clk 0:00:05]} 84. Ra6+ {[%clk 0:00:06]}  Kf7 {[%clk 0:00:06]} 85. Nd5 {[%clk 0:00:06]}  Rd8 {[%clk 0:00:06]} 86. Ne3 {[%clk 0:00:07]}  Rd3 {[%clk 0:00:04]} 87. Kf4 {[%clk 0:00:07]}  Rd4+ {[%clk 0:00:03]} 88. Kxf5 {[%clk 0:00:07]}  Rb4 {[%clk 0:00:03]} 89. Ra5 {[%clk 0:00:06]}  Rb3 {[%clk 0:00:03]} 90. Kf4 {[%clk 0:00:06]}  Kg6 {[%clk 0:00:03]} 91. Ra6+ {[%clk 0:00:06]}  Kf7 {[%clk 0:00:04]} 92. Rc6 {[%clk 0:00:06]}  Rb4+ {[%clk 0:00:04]} 93. Kf3 {[%clk 0:00:07]}  Kg7 {[%clk 0:00:03]} 94. Rc5 {[%clk 0:00:07]}  Kg6 {[%clk 0:00:03]} 95. Rf5 {[%clk 0:00:07]}  Kh6 {[%clk 0:00:04]} 96. Rf4 {[%clk 0:00:07]}  Rb3 {[%clk 0:00:03]} 97. Re4 {[%clk 0:00:07]}  Rb6 {[%clk 0:00:03]} 98. Kf4 {[%clk 0:00:07]}  Rf6+ {[%clk 0:00:03]} 99. Nf5+ {[%clk 0:00:08]}  Kg6 {[%clk 0:00:03]} 100. Re5 {[%clk 0:00:08]}  Ra6 {[%clk 0:00:02]} 101. Rd5 {[%clk 0:00:08]}  Ra4+ {[%clk 0:00:02]} 102. Ke5 {[%clk 0:00:08]}  Rg4 {[%clk 0:00:02]} 103. Rd6+ {[%clk 0:00:08]}  Kf7 {[%clk 0:00:02]} 104. Rd7+ {[%clk 0:00:08]}  Ke8 {[%clk 0:00:03]} 105. Rc7 {[%clk 0:00:08]}  Ra4 {[%clk 0:00:02]} 106. Ke6 {[%clk 0:00:08]}  Kf8 {[%clk 0:00:01]} 107. Rd7 {[%clk 0:00:08]}  Ke8 {[%clk 0:00:01]} 108. Rb7 {[%clk 0:00:07]}  Ra8 {[%clk 0:00:01]} 109. Rh7 {[%clk 0:00:06]}  Ra6+ {[%clk 0:00:01]} 110. Nd6+ {[%clk 0:00:06]}  Kf8 {[%clk 0:00:01]} 111. Rxh5 {[%clk 0:00:06]}  Rb6 {[%clk 0:00:01]} 112. Rf5+ {[%clk 0:00:06]}  Kg7 {[%clk 0:00:02]} 113. Rg5+ {[%clk 0:00:06]}  Kh6 {[%clk 0:00:02]} 114. Ke7 {[%clk 0:00:06]}  Rb1 {[%clk 0:00:02]} 115. Kf6 {[%clk 0:00:06]}  Rb6 {[%clk 0:00:01]} 116. Rd5 {[%clk 0:00:06]}  Kh7 {[%clk 0:00:01]} 117. Rh5+ {[%clk 0:00:05]}  Kg8 {[%clk 0:00:02]} 118. Ke6 {[%clk 0:00:06]}  Ra6 {[%clk 0:00:01]} 119. g4 {[%clk 0:00:06]}  Ra3 {[%clk 0:00:02]} 120. Rg5+ {[%clk 0:00:06]}  Kf8 {[%clk 0:00:01]} 121. Rf5+ {[%clk 0:00:05]}  Kg8 {[%clk 0:00:01]} 122. Rf4 {[%clk 0:00:05]}  Re3+ {[%clk 0:00:02]} 123. Kf5 {[%clk 0:00:05]}  Rd3 {[%clk 0:00:02]} 124. Ne4 {[%clk 0:00:05]}  Rd5+ {[%clk 0:00:02]} 125. Ke6 {[%clk 0:00:05]}  Ra5 {[%clk 0:00:03]} 126. Rf5 {[%clk 0:00:05]}  Ra6+ {[%clk 0:00:04]} 127. Nd6 {[%clk 0:00:05]}  Ra1 {[%clk 0:00:04]} 128. Re5 {[%clk 0:00:05]}  Rf1 {[%clk 0:00:03]} 129. Re4 {[%clk 0:00:05]}  Rb1 {[%clk 0:00:03]} 130. h5 {[%clk 0:00:05]}  Rh1 {[%clk 0:00:03]} 131. Re5 {[%clk 0:00:05]}  Rc1 {[%clk 0:00:03]} 132. g5 {[%clk 0:00:05]}  Rh1 {[%clk 0:00:02]} 133. Kf6 {[%clk 0:00:05]}  Rf1+ {[%clk 0:00:02]} 134. Nf5 {[%clk 0:00:05]}  Kh7 {[%clk 0:00:01]} 135. Re7+ {[%clk 0:00:04]}  Kg8 {[%clk 0:00:02]} 136. Kg6 {[%clk 0:00:04]}  Kf8 {[%clk 0:00:02]} 137. Rf7+ {[%clk 0:00:04]}  Kg8 {[%clk 0:00:02]} 138. Nh6+ {[%clk 0:00:03]}  Kh8 {[%clk 0:00:03]} 139. Rh7# {[%clk 0:00:04]} 1-0


[Site "https://www.chess.com"]

[Event "Titled Tuesday Blitz July 25 Late 2023"]
[White "Gulamali, Kazim"]
[Black "Fisher_TheGalactic"]
[WhiteFideId "2024764"]
[WhiteElo "2532"]
[BlackElo "2690"]
[Result "0-1"]
[Round "9"]
[TimeControl "180+2"]
[Date "2023.07.25"]
[WhiteClock "0:00:00"]
[BlackClock "0:00:04"]
[Board "40"]

1. e4 {[%clk 0:03:00]}  b6 {[%clk 0:02:57]} 2. d4 {[%clk 0:02:59]}  Bb7 {[%clk 0:02:57]} 3. Bd3 {[%clk 0:02:59]}  Nf6 {[%clk 0:02:57]} 4. Qe2 {[%clk 0:02:56]}  e6 {[%clk 0:02:57]} 5. c4 {[%clk 0:02:55]}  Bb4+ {[%clk 0:02:52]} 6. Nc3 {[%clk 0:02:56]}  O-O {[%clk 0:02:51]} 7. Bg5 {[%clk 0:01:58]}  h6 {[%clk 0:02:48]} 8. Bxf6 {[%clk 0:01:48]}  Qxf6 {[%clk 0:02:49]} 9. Nf3 {[%clk 0:01:49]}  d6 {[%clk 0:02:48]} 10. e5 {[%clk 0:01:38]}  dxe5 {[%clk 0:02:46]} 11. dxe5 {[%clk 0:01:39]}  Qe7 {[%clk 0:02:45]} 12. O-O {[%clk 0:01:34]}  Bxc3 {[%clk 0:02:44]} 13. bxc3 {[%clk 0:01:35]}  Nd7 {[%clk 0:02:44]} 14. Rad1 {[%clk 0:01:33]}  Rad8 {[%clk 0:02:43]} 15. Be4 {[%clk 0:01:21]}  Ba6 {[%clk 0:02:34]} 16. Bb1 {[%clk 0:01:17]}  Qc5 {[%clk 0:02:16]} 17. Qe4 {[%clk 0:01:11]}  g6 {[%clk 0:02:14]} 18. Rd4 {[%clk 0:01:11]}  Nb8 {[%clk 0:02:06]} 19. Qh4 {[%clk 0:00:37]}  Rxd4 {[%clk 0:02:00]} 20. cxd4 {[%clk 0:00:37]}  Qxc4 {[%clk 0:02:00]} 21. Nd2 {[%clk 0:00:38]}  Qe2 {[%clk 0:00:45]} 22. Qxh6 {[%clk 0:00:37]}  Qh5 {[%clk 0:00:44]} 23. Qxh5 {[%clk 0:00:37]}  gxh5 {[%clk 0:00:45]} 24. Rc1 {[%clk 0:00:37]}  Rd8 {[%clk 0:00:40]} 25. Nb3 {[%clk 0:00:36]}  c6 {[%clk 0:00:28]} 26. f4 {[%clk 0:00:33]}  Bb7 {[%clk 0:00:27]} 27. Be4 {[%clk 0:00:33]}  a5 {[%clk 0:00:25]} 28. a4 {[%clk 0:00:28]}  Kf8 {[%clk 0:00:22]} 29. Kf2 {[%clk 0:00:28]}  Ke7 {[%clk 0:00:22]} 30. Ke3 {[%clk 0:00:29]}  Rc8 {[%clk 0:00:18]} 31. Rb1 {[%clk 0:00:28]}  Ba6 {[%clk 0:00:14]} 32. Rc1 {[%clk 0:00:21]}  Bb7 {[%clk 0:00:10]} 33. g3 {[%clk 0:00:21]}  Na6 {[%clk 0:00:09]} 34. h3 {[%clk 0:00:19]}  Nb4 {[%clk 0:00:09]} 35. g4 {[%clk 0:00:20]}  hxg4 {[%clk 0:00:10]} 36. hxg4 {[%clk 0:00:20]}  Rh8 {[%clk 0:00:10]} 37. Nd2 {[%clk 0:00:16]}  Rh3+ {[%clk 0:00:10]} 38. Nf3 {[%clk 0:00:17]}  Ba6 {[%clk 0:00:08]} 39. Bxc6 {[%clk 0:00:10]}  Bd3 {[%clk 0:00:05]} 40. Bb7 {[%clk 0:00:06]}  Bc2 {[%clk 0:00:05]} 41. Be4 {[%clk 0:00:05]}  Bxa4 {[%clk 0:00:05]} 42. Rc7+ {[%clk 0:00:04]}  Bd7 {[%clk 0:00:05]} 43. f5 {[%clk 0:00:05]}  a4 {[%clk 0:00:04]} 44. Ra7 {[%clk 0:00:04]}  Rh1 {[%clk 0:00:03]} 45. f6+ {[%clk 0:00:04]}  Kd8 {[%clk 0:00:03]} 46. Ng5 {[%clk 0:00:05]}  Re1+ {[%clk 0:00:03]} 47. Kf4 {[%clk 0:00:06]}  Be8 {[%clk 0:00:02]} 48. Ra8+ {[%clk 0:00:06]}  Kd7 {[%clk 0:00:03]} 49. Ra7+ {[%clk 0:00:06]}  Kd8 {[%clk 0:00:03]} 50. Nxf7+ {[%clk 0:00:07]}  Bxf7 {[%clk 0:00:04]} 51. Rxf7 {[%clk 0:00:07]}  a3 {[%clk 0:00:05]} 52. Ra7 {[%clk 0:00:07]}  a2 {[%clk 0:00:05]} 53. Ra8+ {[%clk 0:00:08]}  Kd7 {[%clk 0:00:04]} 54. Ra7+ {[%clk 0:00:05]}  Kd8 {[%clk 0:00:03]} 55. Bg6 {[%clk 0:00:05]}  a1=Q {[%clk 0:00:02]} 56. Rxa1 {[%clk 0:00:05]}  Rxa1 {[%clk 0:00:03]} 57. Kg5 {[%clk 0:00:05]}  Rf1 {[%clk 0:00:04]} 58. Kh6 {[%clk 0:00:06]}  Nc6 {[%clk 0:00:03]} 59. g5 {[%clk 0:00:07]}  Nxd4 {[%clk 0:00:03]} 60. Kg7 {[%clk 0:00:06]}  Nf3 {[%clk 0:00:04]} 61. Be4 {[%clk 0:00:03]}  Nxg5 {[%clk 0:00:04]} 62. Bc6 {[%clk 0:00:00]}  Nf3 {[%clk 0:00:04]} 0-1


[Site "https://www.chess.com"]

[Event "Titled Tuesday Blitz July 25 Late 2023"]
[White "Toncheva, Nadya"]
[Black "Weetik, Vjacheslav"]
[WhiteFideId "2924056"]
[BlackFideId "4153472"]
[WhiteElo "2476"]
[BlackElo "2675"]
[Result "0-1"]
[Round "9"]
[TimeControl "180+2"]
[Date "2023.07.25"]
[WhiteClock "0:00:00"]
[BlackClock "0:00:09"]
[Board "43"]

1. e4 {[%clk 0:03:00]}  c6 {[%clk 0:02:59]} 2. d4 {[%clk 0:03:00]}  d5 {[%clk 0:03:00]} 3. Nc3 {[%clk 0:03:01]}  dxe4 {[%clk 0:03:00]} 4. Nxe4 {[%clk 0:03:02]}  Bf5 {[%clk 0:03:01]} 5. Ng3 {[%clk 0:03:02]}  Bg6 {[%clk 0:03:02]} 6. h4 {[%clk 0:03:03]}  h6 {[%clk 0:03:02]} 7. Nf3 {[%clk 0:03:03]}  e6 {[%clk 0:03:02]} 8. Bd3 {[%clk 0:03:03]}  Bxd3 {[%clk 0:03:03]} 9. Qxd3 {[%clk 0:03:03]}  Nf6 {[%clk 0:03:03]} 10. Bf4 {[%clk 0:02:58]}  Bd6 {[%clk 0:03:03]} 11. Ne5 {[%clk 0:02:57]}  Nd5 {[%clk 0:02:37]} 12. Bd2 {[%clk 0:02:57]}  Nd7 {[%clk 0:02:31]} 13. Nc4 {[%clk 0:02:38]}  Be7 {[%clk 0:02:23]} 14. O-O-O {[%clk 0:02:35]}  Qc7 {[%clk 0:02:14]} 15. Ne4 {[%clk 0:02:08]}  O-O-O {[%clk 0:02:03]} 16. Qf3 {[%clk 0:01:58]}  N7f6 {[%clk 0:01:52]} 17. Rhe1 {[%clk 0:01:53]}  c5 {[%clk 0:01:39]} 18. Ne5 {[%clk 0:01:44]}  Nxe4 {[%clk 0:01:20]} 19. Qxe4 {[%clk 0:01:39]}  Rhf8 {[%clk 0:01:06]} 20. Nxf7 {[%clk 0:01:25]}  c4 {[%clk 0:00:26]} 21. Nxd8 {[%clk 0:01:18]}  Rxd8 {[%clk 0:00:26]} 22. Qxe6+ {[%clk 0:01:14]}  Kb8 {[%clk 0:00:26]} 23. c3 {[%clk 0:01:12]}  Qa5 {[%clk 0:00:23]} 24. Kb1 {[%clk 0:01:03]}  Qb5 {[%clk 0:00:18]} 25. Re5 {[%clk 0:00:49]}  Bf6 {[%clk 0:00:17]} 26. Rxd5 {[%clk 0:00:31]}  Rxd5 {[%clk 0:00:17]} 27. Bf4+ {[%clk 0:00:30]}  Ka8 {[%clk 0:00:17]} 28. Re1 {[%clk 0:00:25]}  Rd8 {[%clk 0:00:12]} 29. Bc7 {[%clk 0:00:18]}  Rh8 {[%clk 0:00:11]} 30. Qf7 {[%clk 0:00:09]}  a5 {[%clk 0:00:10]} 31. Be5 {[%clk 0:00:09]}  Re8 {[%clk 0:00:10]} 32. Re3 {[%clk 0:00:07]}  Bxh4 {[%clk 0:00:08]} 33. g3 {[%clk 0:00:05]}  Bg5 {[%clk 0:00:08]} 34. f4 {[%clk 0:00:06]}  Bf6 {[%clk 0:00:08]} 35. Qg6 {[%clk 0:00:05]}  Qc6 {[%clk 0:00:08]} 36. Qe4 {[%clk 0:00:04]}  Qc8 {[%clk 0:00:08]} 37. Qc2 {[%clk 0:00:04]}  Qc6 {[%clk 0:00:08]} 38. Qd1 {[%clk 0:00:04]}  Ka7 {[%clk 0:00:08]} 39. a3 {[%clk 0:00:03]}  Be7 {[%clk 0:00:07]} 40. d5 {[%clk 0:00:04]}  Qb5 {[%clk 0:00:08]} 41. Qd4+ {[%clk 0:00:03]}  Bc5 {[%clk 0:00:07]} 42. Qe4 {[%clk 0:00:03]}  Bxa3 {[%clk 0:00:06]} 43. Qc2 {[%clk 0:00:02]}  Bc5 {[%clk 0:00:06]} 44. Bd4 {[%clk 0:00:01]}  Rxe3 {[%clk 0:00:06]} 45. Bxe3 {[%clk 0:00:01]}  Bxe3 {[%clk 0:00:06]} 46. Qe2 {[%clk 0:00:02]}  Bc5 {[%clk 0:00:06]} 47. d6 {[%clk 0:00:02]}  Bxd6 {[%clk 0:00:07]} 48. Qf2+ {[%clk 0:00:02]}  Qc5 {[%clk 0:00:07]} 49. Qe2 {[%clk 0:00:02]}  a4 {[%clk 0:00:07]} 50. Ka2 {[%clk 0:00:02]}  Qb5 {[%clk 0:00:07]} 51. Qe3+ {[%clk 0:00:02]}  Bc5 {[%clk 0:00:07]} 52. Qe5 {[%clk 0:00:03]}  Qc6 {[%clk 0:00:06]} 53. Qf5 {[%clk 0:00:01]}  g6 {[%clk 0:00:06]} 54. Qc2 {[%clk 0:00:01]}  h5 {[%clk 0:00:06]} 55. Qe2 {[%clk 0:00:01]}  Qb5 {[%clk 0:00:06]} 56. g4 {[%clk 0:00:01]}  Qb3+ {[%clk 0:00:06]} 57. Kb1 {[%clk 0:00:02]}  a3 {[%clk 0:00:06]} 58. gxh5 {[%clk 0:00:02]}  gxh5 {[%clk 0:00:05]} 59. Qg2 {[%clk 0:00:01]}  Qxb2+ {[%clk 0:00:05]} 60. Qxb2 {[%clk 0:00:02]}  axb2 {[%clk 0:00:06]} 61. Kxb2 {[%clk 0:00:02]}  h4 {[%clk 0:00:07]} 62. f5 {[%clk 0:00:03]}  h3 {[%clk 0:00:07]} 63. f6 {[%clk 0:00:04]}  h2 {[%clk 0:00:08]} 64. f7 {[%clk 0:00:00]}  Bf8 {[%clk 0:00:09]} 0-1


[Site "https://www.chess.com"]

[Event "Titled Tuesday Blitz July 25 Late 2023"]
[White "Grossboss19"]
[Black "campochess"]
[WhiteElo "2491"]
[BlackElo "2219"]
[Result "1-0"]
[Round "9"]
[TimeControl "180+2"]
[Date "2023.07.25"]
[WhiteClock "0:00:15"]
[BlackClock "0:00:28"]
[Board "45"]

1. c4 {[%clk 0:03:00]}  e6 {[%clk 0:02:58]} 2. Nc3 {[%clk 0:02:57]}  c6 {[%clk 0:02:58]} 3. d4 {[%clk 0:02:55]}  d5 {[%clk 0:02:58]} 4. e4 {[%clk 0:02:55]}  Bb4 {[%clk 0:02:54]} 5. e5 {[%clk 0:02:53]}  dxc4 {[%clk 0:02:53]} 6. Bxc4 {[%clk 0:02:51]}  Ne7 {[%clk 0:02:53]} 7. a3 {[%clk 0:02:50]}  Bxc3+ {[%clk 0:02:51]} 8. bxc3 {[%clk 0:02:51]}  Nf5 {[%clk 0:02:50]} 9. g4 {[%clk 0:02:47]}  Nh4 {[%clk 0:02:50]} 10. Nf3 {[%clk 0:02:46]}  Ng6 {[%clk 0:02:48]} 11. Ng5 {[%clk 0:02:41]}  h6 {[%clk 0:02:36]} 12. Ne4 {[%clk 0:02:39]}  O-O {[%clk 0:02:24]} 13. Qf3 {[%clk 0:02:27]}  c5 {[%clk 0:02:23]} 14. Nxc5 {[%clk 0:02:04]}  Nc6 {[%clk 0:02:17]} 15. Bb5 {[%clk 0:01:50]}  Ncxe5 {[%clk 0:02:17]} 16. dxe5 {[%clk 0:01:50]}  Nxe5 {[%clk 0:02:16]} 17. Qe4 {[%clk 0:01:48]}  Qf6 {[%clk 0:02:13]} 18. Nd3 {[%clk 0:01:26]}  Nxd3+ {[%clk 0:01:52]} 19. Bxd3 {[%clk 0:01:20]}  Rd8 {[%clk 0:01:45]} 20. O-O {[%clk 0:01:00]}  Qxc3 {[%clk 0:01:37]} 21. Qh7+ {[%clk 0:00:58]}  Kf8 {[%clk 0:01:37]} 22. Be4 {[%clk 0:00:21]}  Qxa1 {[%clk 0:01:28]} 23. Bg5 {[%clk 0:00:18]}  Qxf1+ {[%clk 0:01:20]} 24. Kxf1 {[%clk 0:00:19]}  hxg5 {[%clk 0:01:20]} 25. Qh8+ {[%clk 0:00:20]}  Ke7 {[%clk 0:01:19]} 26. Qxg7 {[%clk 0:00:20]}  Bd7 {[%clk 0:01:09]} 27. Qxg5+ {[%clk 0:00:21]}  Kd6 {[%clk 0:01:08]} 28. h4 {[%clk 0:00:18]}  f5 {[%clk 0:01:08]} 29. gxf5 {[%clk 0:00:18]}  exf5 {[%clk 0:01:08]} 30. Qf6+ {[%clk 0:00:18]}  Kc7 {[%clk 0:01:07]} 31. Qe5+ {[%clk 0:00:18]}  Kc8 {[%clk 0:01:05]} 32. Qc5+ {[%clk 0:00:18]}  Bc6 {[%clk 0:00:54]} 33. Bxc6 {[%clk 0:00:18]}  bxc6 {[%clk 0:00:54]} 34. Qxc6+ {[%clk 0:00:18]}  Kb8 {[%clk 0:00:54]} 35. h5 {[%clk 0:00:17]}  a5 {[%clk 0:00:43]} 36. h6 {[%clk 0:00:15]}  Ra7 {[%clk 0:00:42]} 37. Qb6+ {[%clk 0:00:15]}  Kc8 {[%clk 0:00:28]} 38. Qxa7 {[%clk 0:00:15]} 1-0


[Site "https://www.chess.com"]

[Event "Titled Tuesday Blitz July 25 Late 2023"]
[White "Troff, Kayden"]
[Black "Bettalli, Francesco"]
[WhiteFideId "2047896"]
[BlackFideId "2816453"]
[WhiteElo "2796"]
[BlackElo "2454"]
[Result "1-0"]
[Round "9"]
[TimeControl "180+2"]
[Date "2023.07.25"]
[WhiteClock "0:00:17"]
[BlackClock "0:00:03"]
[Board "46"]

1. d4 {[%clk 0:03:00]}  Nf6 {[%clk 0:02:55]} 2. Nf3 {[%clk 0:02:59]}  c5 {[%clk 0:02:54]} 3. dxc5 {[%clk 0:02:57]}  e6 {[%clk 0:02:54]} 4. Be3 {[%clk 0:02:57]}  Na6 {[%clk 0:02:49]} 5. g3 {[%clk 0:02:54]}  Bxc5 {[%clk 0:02:49]} 6. Bxc5 {[%clk 0:02:54]}  Nxc5 {[%clk 0:02:50]} 7. Bg2 {[%clk 0:02:54]}  O-O {[%clk 0:02:50]} 8. O-O {[%clk 0:02:54]}  d5 {[%clk 0:02:51]} 9. Nbd2 {[%clk 0:02:53]}  b6 {[%clk 0:02:51]} 10. c4 {[%clk 0:02:53]}  Bb7 {[%clk 0:02:51]} 11. Rc1 {[%clk 0:02:53]}  Qe7 {[%clk 0:02:50]} 12. Ne5 {[%clk 0:02:44]}  dxc4 {[%clk 0:02:46]} 13. Ndxc4 {[%clk 0:02:33]}  Bxg2 {[%clk 0:02:45]} 14. Kxg2 {[%clk 0:02:33]}  Rfd8 {[%clk 0:02:46]} 15. Qc2 {[%clk 0:02:28]}  Qb7+ {[%clk 0:02:46]} 16. Kg1 {[%clk 0:02:00]}  Rac8 {[%clk 0:02:39]} 17. Rfd1 {[%clk 0:01:54]}  Rxd1+ {[%clk 0:02:08]} 18. Rxd1 {[%clk 0:01:28]}  Qc7 {[%clk 0:02:09]} 19. Nd6 {[%clk 0:01:18]}  Rf8 {[%clk 0:01:59]} 20. b4 {[%clk 0:01:11]}  Na6 {[%clk 0:01:59]} 21. Qxc7 {[%clk 0:01:10]}  Nxc7 {[%clk 0:01:59]} 22. Nc6 {[%clk 0:01:10]}  h5 {[%clk 0:01:47]} 23. Nxa7 {[%clk 0:01:05]}  Ra8 {[%clk 0:01:42]} 24. Ndc8 {[%clk 0:01:01]}  Nfd5 {[%clk 0:01:33]} 25. a3 {[%clk 0:00:59]}  Nc3 {[%clk 0:01:30]} 26. Rd8+ {[%clk 0:00:53]}  Kh7 {[%clk 0:01:30]} 27. Kf1 {[%clk 0:00:53]}  h4 {[%clk 0:01:13]} 28. Rd7 {[%clk 0:00:51]}  N7b5 {[%clk 0:01:08]} 29. Nxb5 {[%clk 0:00:42]}  Nxb5 {[%clk 0:01:09]} 30. Rxf7 {[%clk 0:00:41]}  Rxa3 {[%clk 0:01:08]} 31. gxh4 {[%clk 0:00:36]}  Rb3 {[%clk 0:00:57]} 32. Rf4 {[%clk 0:00:35]}  Nc3 {[%clk 0:00:57]} 33. Nxb6 {[%clk 0:00:29]}  Rb1+ {[%clk 0:00:57]} 34. Kg2 {[%clk 0:00:29]}  Nxe2 {[%clk 0:00:57]} 35. Rc4 {[%clk 0:00:29]}  e5 {[%clk 0:00:57]} 36. Nd5 {[%clk 0:00:27]}  Nd4 {[%clk 0:00:53]} 37. f4 {[%clk 0:00:20]}  Rb2+ {[%clk 0:00:49]} 38. Kh3 {[%clk 0:00:17]}  Nf3 {[%clk 0:00:24]} 39. fxe5 {[%clk 0:00:17]}  Nxe5 {[%clk 0:00:25]} 40. Rc5 {[%clk 0:00:17]}  Nf3 {[%clk 0:00:10]} 41. Ne7 {[%clk 0:00:16]}  g6 {[%clk 0:00:03]} 42. Rc7 {[%clk 0:00:16]}  Kh6 {[%clk 0:00:03]} 43. Ng8+ {[%clk 0:00:16]}  Kh5 {[%clk 0:00:03]} 44. Rh7# {[%clk 0:00:17]} 1-0


[Site "https://www.chess.com"]

[Event "Titled Tuesday Blitz July 25 Late 2023"]
[White "Garakov, Mikhael"]
[Black "Morefield, Jason"]
[WhiteFideId "4169034"]
[BlackFideId "30920825"]
[WhiteElo "2523"]
[BlackElo "2739"]
[Result "0-1"]
[Round "9"]
[TimeControl "180+2"]
[Date "2023.07.25"]
[WhiteClock "0:00:13"]
[BlackClock "0:00:53"]
[Board "48"]

1. e4 {[%clk 0:03:00]}  d6 {[%clk 0:02:58]} 2. d4 {[%clk 0:02:55]}  Nf6 {[%clk 0:02:54]} 3. Nc3 {[%clk 0:02:51]}  g6 {[%clk 0:02:54]} 4. g3 {[%clk 0:02:46]}  Bg7 {[%clk 0:02:54]} 5. Bg2 {[%clk 0:02:46]}  O-O {[%clk 0:02:55]} 6. Nge2 {[%clk 0:02:45]}  e5 {[%clk 0:02:55]} 7. O-O {[%clk 0:02:44]}  Nbd7 {[%clk 0:02:50]} 8. h3 {[%clk 0:02:42]}  c6 {[%clk 0:02:42]} 9. a4 {[%clk 0:02:42]}  Qc7 {[%clk 0:02:41]} 10. Kh2 {[%clk 0:02:37]}  a5 {[%clk 0:02:33]} 11. Be3 {[%clk 0:02:32]}  Re8 {[%clk 0:02:33]} 12. Qd2 {[%clk 0:02:32]}  exd4 {[%clk 0:02:26]} 13. Nxd4 {[%clk 0:02:26]}  Ne5 {[%clk 0:02:25]} 14. b3 {[%clk 0:02:22]}  b6 {[%clk 0:02:19]} 15. f4 {[%clk 0:02:19]}  Ned7 {[%clk 0:02:19]} 16. Rad1 {[%clk 0:01:34]}  Nc5 {[%clk 0:02:15]} 17. e5 {[%clk 0:01:24]}  dxe5 {[%clk 0:02:15]} 18. fxe5 {[%clk 0:01:16]}  Qxe5 {[%clk 0:02:00]} 19. Bf4 {[%clk 0:01:16]}  Qh5 {[%clk 0:01:58]} 20. Nxc6 {[%clk 0:01:03]}  Bb7 {[%clk 0:01:52]} 21. Nd5 {[%clk 0:00:52]}  Bxc6 {[%clk 0:01:42]} 22. Nxf6+ {[%clk 0:00:50]}  Bxf6 {[%clk 0:01:42]} 23. g4 {[%clk 0:00:48]}  Qh4 {[%clk 0:01:33]} 24. Bg3 {[%clk 0:00:37]}  Rad8 {[%clk 0:00:59]} 25. Bxh4 {[%clk 0:00:34]}  Rxd2 {[%clk 0:00:58]} 26. Rxd2 {[%clk 0:00:34]}  Bxh4 {[%clk 0:00:59]} 27. Bxc6 {[%clk 0:00:33]}  Re3 {[%clk 0:00:56]} 28. Bd5 {[%clk 0:00:30]}  Kg7 {[%clk 0:00:56]} 29. Rxf7+ {[%clk 0:00:29]}  Kh6 {[%clk 0:00:56]} 30. Rc7 {[%clk 0:00:20]}  Bg3+ {[%clk 0:00:53]} 31. Kg2 {[%clk 0:00:20]}  Bxc7 {[%clk 0:00:54]} 32. h4 {[%clk 0:00:13]}  Rg3+ {[%clk 0:00:53]} 0-1


[Site "https://www.chess.com"]